fUSD/lending_fUSD_20240527
["ID","MTS","AMOUNT","RATE_DAILY","PERIOD"]
[328033973,1716795046427,-1050.0,0.00021,2]
[328033974,1716795046439,-393.98,0.00021196,2]
[328033975,1716795046448,-171.35,0.00022367,2]
[328033976,1716795046458,-886.14,0.00022374,2]
[328033977,1716795046468,-958.10487205,0.0002242,2]
[328033978,1716795046478,-1275.62207,0.00022859,2]
[328033979,1716795046488,-118152.73932878,0.000236,2]
[328033980,1716795046497,-551.99245594,0.000236,2]
[328033981,1716795046507,-393.98,0.00023845,2]
[328033982,1716795046516,-999.88920134,0.00024,3]
[328033983,1716795046526,-180.0,0.0002423,2]
[328033984,1716795046535,-171.37,0.00024264,2]
[328033985,1716795046544,-160.42999606,0.00024538,2]
[328033986,1716795046554,-171.35,0.00024631,2]
[328033987,1716795046563,-1019.0,0.000247,2]
[328033988,1716795046573,-181.38195941,0.00024706,2]
[328033989,1716795046582,-1724.5,0.00024898,2]
[328033990,1716795046591,-1724.5,0.00024898,2]
[328033991,1716795046600,-1724.5,0.00024898,2]
[328033992,1716795046610,-1724.5,0.00024898,2]
[328033993,1716795046619,-1724.5,0.00024898,2]
[328033994,1716795046628,-1724.5,0.00024898,2]
[328033995,1716795046637,-1000.0,0.00024898,2]
[328033996,1716795046647,-1000.0,0.00024898,2]
[328033997,1716795046656,-1000.0,0.00024898,2]
[328033998,1716795046666,-1000.0,0.00024898,2]
[328033999,1716795046675,-1000.0,0.00024898,2]
[328034000,1716795046685,-1000.0,0.00024898,2]
[328034001,1716795046694,-1000.0,0.00024898,2]
[328034002,1716795046703,-1000.0,0.00024898,2]
[328034003,1716795046713,-1000.0,0.00024898,2]
[328034004,1716795046722,-1000.0,0.00024898,2]
[328034005,1716795046732,-1000.0,0.00024898,2]
[328034006,1716795046741,-1000.0,0.00024898,2]
[328034007,1716795046750,-1000.0,0.00024898,2]
[328034008,1716795046759,-1000.0,0.00024898,2]
[328034009,1716795046770,-1000.0,0.00024898,2]
[328034010,1716795046779,-1000.0,0.00024898,2]
[328034011,1716795046789,-1000.0,0.00024898,2]
[328034012,1716795046798,-1000.0,0.00024898,2]
[328034013,1716795046807,-1000.0,0.00024898,2]
[328034014,1716795046817,-1000.0,0.00024898,2]
[328034015,1716795046826,-1000.0,0.00024898,2]
[328034016,1716795046836,-1000.0,0.00024898,2]
[328034017,1716795046845,-526.0,0.00024898,2]
[328034018,1716795046854,-726.0,0.000249,3]
[328034019,1716795046863,-166.33000665,0.00024909,2]
[328034020,1716795046873,-164.0,0.00025,2]
[328034021,1716795046882,-158.80162649,0.00025045,2]
[328034022,1716795046891,-886.14,0.00025113,2]
[328034023,1716795046900,-160.42999606,0.0002535,2]
[328034024,1716795046909,-158.9555,0.00025824,2]
[328034025,1716795046918,-1901.0,0.000259,3]
[328034026,1716795046928,-1000.0,0.000259,2]
[328034027,1716795046937,-153.27221657,0.00026011,2]
[328034028,1716795046946,-1724.5,0.00026206,2]
[328034029,1716795046955,-153.27221657,0.00026376,2]
[328034030,1716795046965,-393.98,0.00026494,2]
[328034031,1716795046974,-166.33000667,0.00026692,2]
[328034032,1716795046983,-160.14420379,0.00026836,2]
[328034033,1716795046994,-171.35,0.00026895,2]
[328034034,1716795047003,-153.5449635,0.000269,2]
[328034035,1716795047019,-177.34182574,0.00027,2]
[328034036,1716795047028,-152.29738132,0.00027384,2]
[328034037,1716795047038,-1275.62208,0.00027859,2]
[328034038,1716795047047,-181.38195941,0.00027921,2]
[328034039,1716795047057,-428.74701672,0.00028477,2]
[328034040,1716795047066,-453.98054057,0.00028478,2]
[328034041,1716795047076,-158.80162649,0.00028496,2]
[328034042,1716795047085,-1724.5,0.00028535,2]
[328034043,1716795047094,-158.80162649,0.00028859,2]
[328034044,1716795047103,-152.29738132,0.0002913,2]
[328034045,1716795047113,-393.98,0.00029144,2]
[328034046,1716795047122,-171.35,0.00029158,2]
[328034047,1716795047131,-171.32,0.0002978,2]
[328034048,1716795047140,-157.57729578,0.00029787,2]
[328034049,1716795047149,-674.258,0.00029882,2]
[328034050,1716795047159,-160.14420379,0.00030674,7]
[328034051,1716795047168,-150.0,0.00030795,2]
[328034052,1716795047178,-160.42999606,0.00030848,7]
[328034053,1716795047187,-1724.5,0.00030864,10]
[328034054,1716795047198,-302.04,0.00031178,2]
[328034055,1716795047207,-524.71,0.00031178,2]
[328034056,1716795047216,-524.71,0.00031178,2]
[328034057,1716795047225,-524.71,0.00031178,2]
[328034058,1716795047234,-524.71,0.00031178,2]
[328034059,1716795047243,-524.71,0.00031178,2]
[328034060,1716795047252,-524.71,0.00031178,2]
[328034061,1716795047263,-524.71,0.00031178,2]
[328034062,1716795047271,-524.71,0.00031178,2]
[328034063,1716795047280,-390.1,0.00031178,2]
[328034064,1716795047290,-441.67,0.00031283,2]
[328034065,1716795047301,-441.67,0.00031291,2]
[328034066,1716795047311,-441.67,0.00031299,2]
[328034067,1716795047319,-441.67,0.00031307,2]
[328034068,1716795047329,-441.67,0.00031316,2]
[328034069,1716795047338,-441.67,0.00031324,2]
[328034070,1716795047348,-441.67,0.00031332,2]
[328034071,1716795047357,-441.67,0.0003134,2]
[328034072,1716795047376,-441.67,0.00031348,2]
[328034073,1716795047388,-441.67,0.00031357,2]
[328034074,1716795047398,-441.67,0.00031365,2]
[328034075,1716795047408,-441.67,0.00031373,2]
[328034076,1716795047418,-441.67,0.00031381,2]
[328034077,1716795047429,-441.67,0.0003139,2]
[328034078,1716795047438,-441.67,0.00031398,2]
[328034079,1716795047448,-441.67,0.00031406,2]
[328034080,1716795047457,-441.67,0.00031414,2]
[328034081,1716795047467,-171.35,0.00031422,2]
[328034082,1716795047477,-441.67,0.00031422,2]
[328034083,1716795047486,-441.67,0.00031431,2]
[328034084,1716795047496,-441.67,0.00031439,2]
[328034085,1716795047505,-155.68,0.00031546,2]
[328034086,1716795047515,-157.052716,0.00031548,36]
[328034087,1716795047525,-157.052716,0.00031648,38]
[328034088,1716795047534,-156.81250843,0.00031673,7]
[328034089,1716795047544,-275.7836714,0.00031678,4]
[328034090,1716795047553,-157.052716,0.00031748,40]
[328034091,1716795047563,-158.80162649,0.00031771,7]
[328034092,1716795047573,-393.98,0.00031793,2]
[328034093,1716795047582,-160.42999606,0.00031802,7]
[328034094,1716795047592,-199.052713,0.00031848,36]
[328034095,1716795047601,-176.06765336,0.00031898,2]
[328034096,1716795047610,-2133.2166693,0.00031898,3]
[328034097,1716795047620,-243.59299652,0.00031898,3]
[328034098,1716795047629,-173.052716,0.00031948,40]
[328034099,1716795047639,-13335.57215894,0.00031997,9]
[328034100,1716795047648,-128360.87819611,0.00031997,10]
[328034101,1716795047767,-644.16500934,0.00031997,10]
[328034127,1716795945142,-208.92817089,0.00012131,2]
[328034128,1716795945163,-155.0,0.00012132,2]
[328034129,1716795945183,-532.30582357,0.00012133,2]
[328034137,1716796029151,-241.14856877,0.00012133,2]
[328034147,1716796232595,-788.5603254,0.00012133,2]
[328034148,1716796232605,-20235.04667288,0.00012133,2]
[328034149,1716796232615,-535.5021,0.00012233,2]
[328034150,1716796232625,-7121.52646669,0.00012332,2]
[328034151,1716796232634,-12827.34832555,0.00012333,2]
[328034152,1716796232762,-136694.82418149,0.00012333,2]
[328034169,1716796237712,-7775.9653312,0.00012333,2]
[328034170,1716796237826,-37550.20684115,0.00012333,2]
[328034171,1716796237838,-2579.89746291,0.00012333,2]
[328034172,1716796237883,-1986.363181,0.00012333,2]
[328034173,1716796237894,-785.96621784,0.00012333,2]
[328034174,1716796237905,-2003.83315,0.00012333,2]
[328034175,1716796237940,-3900.0,0.00012333,2]
[328034176,1716796237999,-270.6746688,0.00012333,2]
[328034192,1716796240407,-1372.20975202,0.00012333,2]
[328034193,1716796241304,-103907.3186115,0.00012333,2]
[328034194,1716796241314,-159.38,0.00013973,2]
[328034195,1716796241323,-154.81,0.00013973,2]
[328034196,1716796241332,-1050.0,0.00021,2]
[328034197,1716796241342,-1710.0,0.000244,3]
[328034198,1716796241353,-285.43780341,0.00024889,2]
[328034199,1716796241363,-285.43780332,0.00024889,2]
[328034200,1716796241373,-285.43780332,0.00024889,2]
[328034201,1716796241383,-285.43780332,0.00024889,2]
[328034202,1716796241392,-285.43780332,0.00024889,2]
[328034203,1716796241401,-285.43780332,0.00024889,2]
[328034204,1716796241411,-158.80162651,0.00024996,2]
[328034205,1716796241420,-155.68021298,0.00025927,2]
[328034206,1716796241430,-285.43780332,0.00026711,2]
[328034207,1716796241439,-160.42999609,0.00026773,2]
[328034208,1716796241449,-159.11,0.00026806,2]
[328034209,1716796241458,-250.0,0.00027598,2]
[328034210,1716796241468,-2000.0,0.00027608,3]
[328034211,1716796241478,-285.43780332,0.00028867,2]
[328034212,1716796241487,-67.70589385,0.00029349,2]
[328034217,1716796242888,-91.67410615,0.00029349,2]
[328034218,1716796242897,-156.69077435,0.0003005,7]
[328034219,1716796242907,-159.11,0.00030115,2]
[328034220,1716796242916,-180.0,0.00030213,2]
[328034221,1716796242925,-285.43780332,0.00031024,10]
[328034222,1716796242935,-157.052716,0.00031148,38]
[328034223,1716796242944,-157.052716,0.00031248,38]
[328034224,1716796242958,-157.052716,0.00031348,40]
[328034225,1716796242967,-156.69077435,0.00031393,7]
[328034226,1716796242977,-157.052716,0.00031448,40]
[328034227,1716796242987,-157.052716,0.00031548,40]
[328034228,1716796242997,-157.052716,0.00031578,44]
[328034229,1716796243007,-425.20735,0.0003158,2]
[328034230,1716796243016,-1187.72934697,0.00031582,2]
[328034231,1716796243052,-8861.62603589,0.00031582,2]
[328034232,1716796243062,-168.92682129,0.00031594,7]
[328034233,1716796243072,-157.052716,0.00031648,42]
[328034234,1716796243083,-157.052716,0.00031678,44]
[328034235,1716796243093,-183.17381765,0.00031678,4]
[328034236,1716796243102,-411.86496791,0.00031722,2]
[328034237,1716796243112,-157.052716,0.00031748,42]
[328034238,1716796243122,-156.69077435,0.00031763,7]
[328034239,1716796243132,-157.052716,0.00031778,44]
[328034240,1716796243141,-358.457,0.00031839,2]
[328034241,1716796243151,-621.92,0.00031839,2]
[328034242,1716796243161,-1270.551,0.00031839,2]
[328034243,1716796243170,-1656.698,0.00031839,2]
[328034244,1716796243181,-1225.0,0.00031839,2]
[328034245,1716796243190,-221.061,0.00031839,2]
[328034246,1716796243199,-37920.0,0.00031839,2]
[328034247,1716796243208,-150.308,0.00031839,2]
[328034248,1716796243218,-157.052716,0.00031848,42]
[328034249,1716796243228,-157.052716,0.00031878,44]
[328034250,1716796243237,-296.60491091,0.00031897,2]
[328034251,1716796243247,-1955.44861358,0.00031898,3]
[328034252,1716796243257,-1740.6018,0.000319,2]
[328034253,1716796243267,-449.8404,0.000319,2]
[328034254,1716796243277,-2135.4137744,0.00031994,2]
[328034255,1716796243287,-6544.0734763,0.00031994,2]
[328034256,1716796243296,-44441.18204087,0.00031997,10]
[328034257,1716796243317,-2030.27054396,0.00031997,10]
[328034258,1716796243328,-1991.22654224,0.00031997,10]
[328034259,1716796243340,-6191.09630002,0.00031997,10]
[328034286,1716796246083,-206460.9626402,0.00031997,10]
[328034287,1716796246093,-396.50849991,0.00031997,2]
[328034288,1716796246104,-207.0,0.00031998,5]
[328034289,1716796246115,-57220.54540359,0.00031998,9]
[328034290,1716796246125,-1119.63507074,0.00031998,4]
[328034291,1716796246135,-324.99711042,0.00031998,4]
[328034292,1716796246144,-177.20297686,0.00031998,4]
[328034293,1716796246155,-604.04033304,0.00031998,4]
[328034294,1716796246164,-263.30296889,0.00031998,4]
[328034295,1716796246175,-355.01537129,0.00031998,4]
[328034296,1716796246186,-172.60140756,0.00031998,4]
[328034297,1716796246197,-490.80776328,0.00031998,4]
[328034298,1716796246206,-181.89269478,0.00031998,4]
[328034299,1716796246216,-201.82062319,0.00031998,4]
[328034300,1716796246225,-366.28747607,0.00031998,4]
[328034301,1716796246235,-155.43161183,0.00031998,4]
[328034302,1716796246244,-686.8929503,0.00031998,4]
[328034303,1716796246254,-290.75140384,0.00031998,4]
[328034304,1716796246263,-190.64682142,0.00031998,4]
[328034305,1716796246272,-95103.53214902,0.00031998,2]
[328034306,1716796246285,-922.12073848,0.00031998,2]
[328034307,1716796246296,-523.98031464,0.00031998,2]
[328034308,1716796246312,-404.0,0.00031998,2]
[328034309,1716796246323,-14462.61894484,0.00031998,2]
[328034310,1716796246334,-13764.729062,0.00031998,2]
[328034311,1716796246345,-1780.084,0.00031998,2]
[328034326,1716797140200,-155.0,0.00012029,2]
[328034327,1716797140223,-1037.45934342,0.00012029,2]
[328034328,1716797246105,-884.48901812,0.00012026,2]
[328034329,1716797246126,-155.0,0.00012027,2]
[328034330,1716797246147,-3966.01322253,0.00012029,2]
[328034353,1716797437917,-999.858006,0.00012029,2]
[328034354,1716797437976,-3149.00662573,0.00012029,2]
[328034355,1716797438035,-999.29999798,0.00012029,2]
[328034356,1716797438093,-1298.10070513,0.00012029,2]
[328034357,1716797438154,-45237.32958135,0.00012029,2]
[328034358,1716797438164,-2925.91137646,0.00012032,2]
[328034359,1716797438174,-10003.5723,0.00012233,2]
[328034360,1716797438183,-2898.5314,0.00012233,2]
[328034361,1716797438192,-252.72064751,0.00013972,2]
[328034362,1716797438202,-169.0,0.00013973,2]
[328034363,1716797438212,-619.51183842,0.00017259,2]
[328034364,1716797438222,-154.41114779,0.0002416,2]
[328034365,1716797438231,-153.78958093,0.00024176,2]
[328034366,1716797438241,-160.1442038,0.00024374,2]
[328034367,1716797438250,-219.47923133,0.00024477,2]
[328034368,1716797438259,-158.54105395,0.00024595,2]
[328034369,1716797438269,-160.1442038,0.00024919,2]
[328034370,1716797438279,-690.0,0.00025,3]
[328034371,1716797438288,-160.1442038,0.00025212,2]
[328034372,1716797438297,-155.74836413,0.0002523,2]
[328034373,1716797438307,-155.81,0.0002646,2]
[328034374,1716797438316,-154.41114779,0.00026977,2]
[328034376,1716797438325,-154.41114779,0.00027312,2]
[328034377,1716797438335,-154.41114779,0.00027686,2]
[328034378,1716797438344,-1464.28,0.00027939,2]
[328034379,1716797438354,-155.0,0.00028722,2]
[328034380,1716797438363,-155.81,0.00028723,2]
[328034381,1716797438373,-250.0,0.00028752,2]
[328034382,1716797438382,-1291.91,0.00028971,2]
[328034384,1716797438391,-160.52187873,0.00029915,2]
[328034386,1716797438400,-10000.0,0.00030145,30]
[328034388,1716797438410,-1170.76249976,0.00030398,4]
[328034389,1716797438418,-1849.14899093,0.00030398,2]
[328034390,1716797438428,-162.03,0.0003068,2]
[328034391,1716797438437,-155.81,0.00030987,2]
[328034392,1716797438446,-1206.0941288,0.00031,3]
[328034393,1716797438459,-816.70025,0.00031,3]
[328034402,1716797440496,-5124.48718165,0.00031,3]
[328034403,1716797440506,-405.27,0.000314,5]
[328034404,1716797440516,-850.64184,0.0003168,2]
[328034405,1716797440530,-411.86496791,0.00031706,2]
[328034406,1716797440541,-500.0,0.00031741,2]
[328034407,1716797440551,-500.0,0.00031742,2]
[328034408,1716797440561,-200.0,0.00031742,2]
[328034409,1716797440571,-3636.6936,0.00031798,2]
[328034410,1716797440581,-172.45,0.000318,10]
[328034411,1716797440591,-160.1442038,0.00031825,7]
[328034412,1716797440601,-357.0,0.00031849,2]
[328034413,1716797440611,-614.0,0.00031849,2]
[328034414,1716797440620,-886.795,0.00031849,2]
[328034415,1716797440630,-285.43780332,0.00031853,10]
[328034416,1716797440639,-1933.37071315,0.00031893,2]
[328034417,1716797440649,-500.63393117,0.00031894,2]
[328034418,1716797440661,-441.72500004,0.00031894,2]
[328034419,1716797440672,-991.01178192,0.00031894,2]
[328034420,1716797440684,-84.16821808,0.00031896,2]
[328034421,1716797442720,-1849.20249505,0.00031896,2]
[328034422,1716797442730,-1933.37071313,0.00031897,2]
[328034423,1716797442739,-1933.37071313,0.00031898,2]
[328034424,1716797442749,-350.43870604,0.00031898,2]
[328034425,1716797442758,-1779.27737253,0.00031898,3]
[328034431,1716797443486,-20.91512153,0.00031898,3]
[328034432,1716797443496,-976.0749,0.00031898,2]
[328034433,1716797443506,-214.0,0.00031898,2]
[328034434,1716797443516,-34961.9974,0.00031898,2]
[328034435,1716797443526,-2031.0163,0.000319,2]
[328034436,1716797443535,-172.45,0.00031953,10]
[328034437,1716797443545,-741.05627856,0.0003199,2]
[328034578,1716797446034,-1580.82632732,0.0003199,2]
[328034579,1716797446045,-38114.3333743,0.00031993,2]
[328034580,1716797446054,-1571.1662747,0.00031993,2]
[328034581,1716797446065,-4814.9111281,0.00031993,2]
[328034582,1716797446074,-1689.2227847,0.00031993,2]
[328034583,1716797446085,-242.09407043,0.00031995,2]
[328034584,1716797446095,-292.3707264,0.00031997,2]
[328034585,1716797446104,-28610.2727018,0.00031998,9]
[328034586,1716797446114,-257885.60807832,0.00031998,2]
[328034591,1716797787169,180.55,0.00029843,120]
[328034596,1716798441114,-333.64238601,0.00013966,2]
[328034598,1716798450105,-541.62529953,0.00013965,2]
[328034599,1716798450123,-95.10463071,0.00013966,2]
[328034600,1716798450143,-1000.0,0.00013966,2]
[328034601,1716798450162,-644.15206775,0.00013967,2]
[328034602,1716798450181,-150.0,0.00013967,2]
[328034603,1716798450200,-31.84193768,0.00013968,2]
[328034604,1716798493530,-2000.0,0.00013968,2]
[328034605,1716798508944,-2000.0,0.00013968,2]
[328034606,1716798510493,-2000.0,0.00013968,2]
[328034607,1716798512479,-1492.31677125,0.00013968,2]
[328034608,1716798512499,-507.68322875,0.00013972,2]
[328034609,1716798528714,-516.74502461,0.00013972,2]
[328034610,1716798528734,-159.38,0.00013973,2]
[328034635,1716798638491,-159.21,0.00016866,2]
[328034636,1716798638501,-159.21,0.0001913,2]
[328034637,1716798638510,-150.0,0.00019725,2]
[328034638,1716798638520,-159.21,0.00021394,2]
[328034639,1716798638529,-159.21,0.00023658,2]
[328034640,1716798638538,-50.58840492,0.00024633,2]
[328034641,1716798638572,-103.632774,0.00024633,2]
[328034642,1716798638582,-154.22117892,0.000252,2]
[328034643,1716798638591,-159.21,0.00025922,2]
[328034644,1716798638601,-300.0,0.00025965,2]
[328034645,1716798638610,-154.22117892,0.00026032,2]
[328034646,1716798638619,-1000.0,0.00027126,2]
[328034647,1716798638629,-159.21,0.00028185,2]
[328034648,1716798638638,-4819.03,0.00028471,2]
[328034649,1716798638648,-3424.50953696,0.00029,2]
[328034650,1716798638722,-5186.21650933,0.00029,2]
[328034651,1716798638734,-666.34119034,0.00029,2]
[328034652,1716798638876,-4022.14476201,0.00029,2]
[328034653,1716798638888,-34.57537517,0.00029,2]
[328034654,1716798638897,-154.22117892,0.00029119,2]
[328034655,1716798638907,-154.79164449,0.00029138,2]
[328034656,1716798638916,-392.15507544,0.00029256,2]
[328034657,1716798638927,-1867.4353998,0.00029256,2]
[328034658,1716798638970,-323.49456937,0.00029256,2]
[328034688,1716798640690,-1968.55284842,0.00029256,2]
[328034703,1716798640779,-738.29209206,0.00029256,2]
[328034705,1716798640793,-665.78536543,0.00029256,2]
[328034707,1716798640804,-1177.60795679,0.00029256,2]
[328034711,1716798641390,-896.43920001,0.00029256,2]
[328034712,1716798641403,-3145.28711561,0.00029256,2]
[328034713,1716798641425,-5101.95037707,0.00029256,2]
[328034714,1716798641437,-199.06159389,0.00029722,2]
[328034715,1716798641457,-50.93840611,0.00029722,2]
[328034716,1716798641468,-1040.2525114,0.00029843,2]
[328034717,1716798641478,-1044.68909312,0.00029843,2]
[328034718,1716798641488,-159.21,0.00030449,2]
[328034719,1716798641498,-4877.74,0.00030788,2]
[328034720,1716798641508,-5000.0,0.00031,2]
[328034721,1716798641518,-162.03,0.00031091,2]
[328034722,1716798641528,-167.0,0.00031142,2]
[328034723,1716798641538,-331.0,0.00031498,2]
[328034724,1716798641547,-150.0,0.00031498,2]
[328034725,1716798641557,-614.0,0.00031498,2]
[328034726,1716798641568,-3512.55477618,0.0003152,2]
[328034727,1716798641578,-411.86496791,0.00031533,2]
[328034728,1716798641589,-154.22117892,0.00031664,7]
[328034729,1716798641599,-252.32718806,0.00031678,4]
[328034730,1716798641609,-8775.35995833,0.0003168,2]
[328034731,1716798641619,-500.0,0.00031742,2]
[328034732,1716798641629,-200.0,0.00031742,2]
[328034733,1716798641639,-262.76202295,0.00031892,10]
[328034734,1716798641649,-1000.0,0.00031892,2]
[328034735,1716798641659,-180.74659826,0.00031898,2]
[328034736,1716798641669,-306.63386782,0.00031898,2]
[328034737,1716798641679,-64047.8625,0.00031898,2]
[328034738,1716798641688,-1000.0,0.00031898,2]
[328034739,1716798641697,-2500.0,0.00031898,2]
[328034740,1716798641707,-359.3163,0.00031898,2]
[328034741,1716798641717,-180.74659826,0.00031899,2]
[328034742,1716798641727,-180.74659826,0.000319,2]
[328034743,1716798641736,-335.35859223,0.0003198,7]
[328034744,1716798641756,-35444.8109595,0.00031992,2]
[328034745,1716798641767,-4699.4649641,0.00031992,2]
[328034746,1716798641777,-587.7917488,0.00031992,2]
[328034747,1716798641787,-636.7239022,0.00031992,2]
[328034748,1716798641797,-5545.5586236,0.00031998,2]
[328034749,1716798641814,-961.51875694,0.00031998,2]
[328034750,1716798643459,-1244.01297395,0.00031898,2]
[328034751,1716798644203,-500.0,0.00031898,2]
[328034753,1716798644216,-755.98702605,0.00031898,2]
[328034755,1716798644226,-25805.62492996,0.00031998,2]
[328034757,1716798644236,-2525.29365356,0.00031998,2]
[328034759,1716798644251,-2879.81811786,0.00031998,2]
[328034761,1716798644263,-43558.67549984,0.00031998,2]
[328034779,1716798646235,-397.0,0.00031546,2]
[328034780,1716798646249,-6.28444774,0.00031546,2]
[328034781,1716798646258,-440065.29141882,0.00031998,2]
[328034782,1716798646275,-8311.55299363,0.00031998,2]
[328034783,1716798646388,-279.80233341,0.00031998,2]
[328034784,1716798646470,-28870.5208017,0.00031998,2]
[328034785,1716798646481,-5794.71599016,0.00031998,2]
[328034786,1716798646494,-608.68032077,0.00031998,2]
[328034787,1716798646504,-3936.76005085,0.00031998,2]
[328034805,1716798943251,241.24,0.0003038,120]
[328034808,1716799549148,-884.48901812,0.00013866,2]
[328034809,1716799549168,-41.37342012,0.00013866,2]
[328034810,1716799578456,-157.93299216,0.00013864,2]
[328034811,1716799578481,-155.0,0.00013865,2]
[328034812,1716799578505,-773.45439234,0.00013866,2]
[328034813,1716799578530,-208.92817089,0.00013871,2]
[328034814,1716799578553,-6512.7651,0.00013872,2]
[328034815,1716799578576,-4744.86908143,0.00013972,2]
[328034816,1716799578600,-167.01,0.00013973,2]
[328034817,1716799578623,-53465.05298352,0.00013973,2]
[328034818,1716799623087,155.0,0.00014999,7]
[328034819,1716799632326,-241.14987128,0.00015,2]
[328034844,1716799837424,-403.0675171,0.00013972,2]
[328034848,1716799837434,-169.0,0.00013973,2]
[328034850,1716799837444,-2277.8919,0.000149,2]
[328034852,1716799837455,-809.45890883,0.00015,2]
[328034855,1716799837464,-23053.46532806,0.00015,2]
[328034857,1716799837474,-68447.0,0.00015,2]
[328034859,1716799837484,-250.0,0.00018784,2]
[328034861,1716799837497,-534.43,0.00019452,2]
[328034863,1716799837506,-2563.63,0.00019452,2]
[328034865,1716799837516,-11179.12339973,0.000236,2]
[328034867,1716799837526,-2652.69934693,0.00024,3]
[328034869,1716799837536,-157.95,0.00025162,2]
[328034871,1716799837546,-1829.0,0.000254,3]
[328034873,1716799837556,-157.95,0.00028029,2]
[328034874,1716799837566,-910.0,0.000288,2]
[328034875,1716799837586,-603.85,0.00028864,2]
[328034876,1716799837597,-700.65,0.00028904,2]
[328034877,1716799837609,-250.0,0.00028904,2]
[328034878,1716799837619,-154.22117892,0.00029092,2]
[328034879,1716799837629,-160.0,0.00029638,2]
[328034880,1716799837638,-158.34,0.00029736,2]
[328034881,1716799837648,-554.87,0.00030371,2]
[328034882,1716799837659,-157.95,0.00030897,2]
[328034883,1716799837668,-356.884,0.00031148,2]
[328034884,1716799837678,-415.94,0.0003137,2]
[328034885,1716799837688,-870.87,0.0003137,2]
[328034886,1716799837699,-870.87,0.0003137,2]
[328034887,1716799837708,-870.87,0.0003137,2]
[328034888,1716799837718,-870.87,0.0003137,2]
[328034889,1716799837728,-870.87,0.0003137,2]
[328034890,1716799837739,-868.59,0.0003137,2]
[328034891,1716799837754,-1523.3568,0.0003168,2]
[328034892,1716799837764,-368.5814,0.00031698,2]
[328034893,1716799837774,-500.0,0.00031742,2]
[328034894,1716799837784,-157.052717,0.00031748,42]
[328034895,1716799837795,-170.88302091,0.00031748,10]
[328034896,1716799837805,-411.86496791,0.00031762,2]
[328034897,1716799837815,-299.4326,0.00031792,2]
[328034898,1716799837826,-156.74027255,0.00031798,10]
[328034899,1716799837836,-39223.2628,0.00031798,2]
[328034900,1716799837845,-157.052717,0.00031848,44]
[328034901,1716799837855,-268.30463429,0.00031851,2]
[328034902,1716799837865,-554.87,0.0003189,2]
[328034903,1716799837875,-5636.39232077,0.00031892,2]
[328034904,1716799838105,-155.0,0.00028799,7]
[328034905,1716799838116,-1296.9363882,0.00031892,2]
[328034906,1716799838128,-23586.3,0.00031892,2]
[328034907,1716799838253,-3123.53,0.00031892,2]
[328034908,1716799838264,-1064.57820793,0.00031892,2]
[328034909,1716799838290,-3887.96353,0.00031892,2]
[328034910,1716799838302,-3793.98626351,0.00031892,2]
[328034921,1716799840295,-1264.66227184,0.00031892,2]
[328034922,1716799840307,-553.93620541,0.00031892,2]
[328034923,1716799841091,-3933.9,0.00031892,2]
[328034924,1716799841202,-931.8793726,0.00031892,2]
[328034925,1716799841315,-6898.7,0.00031892,2]
[328034941,1716799842987,-403.28444774,0.00031508,2]
[328034942,1716799842998,-589.84291267,0.00031892,2]
[328034943,1716799843009,-1725.0,0.00031892,2]
[328034944,1716799843024,-7866.28800002,0.00031892,2]
[328034945,1716799843035,-22254.01811911,0.00031892,2]
[328034946,1716799843045,-6742.28300794,0.00031892,2]
[328034947,1716799843055,-326.13897362,0.00031898,2]
[328034948,1716799843064,-101460.1934,0.00031898,2]
[328034949,1716799843073,-1000.0,0.00031898,2]
[328034950,1716799843082,-2216.15008915,0.00031899,3]
[328034951,1716799843091,-920.353,0.000319,2]
[328034952,1716799843100,-167.75420966,0.000319,2]
[328034953,1716799843109,-156.74027254,0.00031951,10]
[328034954,1716799843118,-25855.4783296,0.00031993,2]